fUSD/lending_fUSD_20250507
["ID","MTS","AMOUNT","RATE_DAILY","PERIOD"]
[360205004,1746621040964,-1022.55684754,0.00019845,2]
[360205005,1746621040973,-1022.55684754,0.00019845,2]
[360205006,1746621040986,-1022.55684754,0.00019845,2]
[360205007,1746621040995,-1022.55684754,0.00019845,2]
[360205008,1746621041005,-1022.55684754,0.00019845,2]
[360205009,1746621041014,-1022.55684754,0.00019845,2]
[360205010,1746621041024,-1022.55684754,0.00019845,2]
[360205011,1746621041033,-1022.55684754,0.00019845,2]
[360205012,1746621041044,-1022.55684754,0.00019845,2]
[360205013,1746621041053,-1022.55684754,0.00019845,2]
[360205014,1746621041063,-1022.55684754,0.00019845,2]
[360205015,1746621041073,-1022.55684754,0.00019845,2]
[360205016,1746621041083,-1022.55684754,0.00019845,2]
[360205017,1746621041093,-1022.55684754,0.00019845,2]
[360205018,1746621041102,-1022.55684754,0.00019845,2]
[360205019,1746621041112,-1022.55684754,0.00019845,2]
[360205020,1746621041121,-1022.55684754,0.00019845,2]
[360205021,1746621041131,-1022.55684754,0.00019845,2]
[360205022,1746621041141,-1022.55684754,0.00019845,2]
[360205023,1746621041150,-1022.55684754,0.00019845,2]
[360205024,1746621041160,-1022.55684754,0.00019845,2]
[360205025,1746621041170,-1022.55684754,0.00019845,2]
[360205026,1746621041179,-1022.55684754,0.00019845,2]
[360205027,1746621041189,-1022.55684754,0.00019845,2]
[360205028,1746621041198,-1022.55684754,0.00019845,2]
[360205029,1746621041207,-1022.55684754,0.00019845,2]
[360205030,1746621041217,-1022.55684754,0.00019845,2]
[360205031,1746621041226,-1022.55684754,0.00019845,2]
[360205032,1746621041236,-1022.55684754,0.00019845,2]
[360205033,1746621041247,-1022.55684754,0.00019845,2]
[360205034,1746621041257,-1022.55684754,0.00019845,2]
[360205035,1746621041267,-1022.55684754,0.00019845,2]
[360205036,1746621041277,-1022.55684754,0.00019845,2]
[360205037,1746621041287,-1022.55684754,0.00019845,2]
[360205038,1746621041297,-1022.55684754,0.00019845,2]
[360205039,1746621041307,-1022.55684754,0.00019845,2]
[360205040,1746621041317,-1022.55684754,0.00019845,2]
[360205041,1746621041327,-1022.55684754,0.00019845,2]
[360205042,1746621041341,-1022.55684754,0.00019845,2]
[360205043,1746621041351,-1022.55684754,0.00019845,2]
[360205044,1746621041360,-996.99292635,0.00019845,2]
[360205045,1746621041371,-996.99292635,0.00019845,2]
[360205046,1746621041381,-996.99292635,0.00019845,2]
[360205047,1746621041390,-996.99292635,0.00019845,2]
[360205048,1746621041400,-996.99292635,0.00019845,2]
[360205049,1746621041411,-996.99292635,0.00019845,2]
[360205050,1746621041420,-996.99292635,0.00019845,2]
[360205051,1746621041430,-996.99292635,0.00019845,2]
[360205052,1746621041439,-996.99292635,0.00019845,2]
[360205053,1746621041449,-996.99292635,0.00019845,2]
[360205054,1746621041458,-996.99292635,0.00019845,2]
[360205055,1746621041468,-996.99292635,0.00019845,2]
[360205056,1746621041478,-996.99292635,0.00019845,2]
[360205057,1746621041488,-996.99292635,0.00019845,2]
[360205058,1746621041498,-996.99292635,0.00019845,2]
[360205059,1746621041508,-996.99292635,0.00019845,2]
[360205060,1746621041517,-996.99292635,0.00019845,2]
[360205061,1746621041527,-996.99292635,0.00019845,2]
[360205062,1746621041536,-996.99292635,0.00019845,2]
[360205063,1746621041545,-996.99292635,0.00019845,2]
[360205064,1746621041554,-996.99292635,0.00019845,2]
[360205065,1746621041564,-996.99292635,0.00019845,2]
[360205066,1746621041573,-996.99292635,0.00019845,2]
[360205067,1746621041582,-996.99292635,0.00019845,2]
[360205068,1746621041592,-996.99292635,0.00019845,2]
[360205069,1746621041601,-996.99292635,0.00019845,2]
[360205070,1746621041611,-996.99292635,0.00019845,2]
[360205071,1746621041622,-996.99292635,0.00019845,2]
[360205072,1746621041631,-996.99292635,0.00019845,2]
[360205073,1746621041641,-996.99292635,0.00019845,2]
[360205074,1746621041651,-996.99292635,0.00019845,2]
[360205075,1746621041660,-1052.38142227,0.00019845,2]
[360205076,1746621041669,-1052.38142227,0.00019845,2]
[360205077,1746621041678,-1052.38142227,0.00019845,2]
[360205078,1746621041690,-1052.38142227,0.00019845,2]
[360205079,1746621041701,-1052.38142227,0.00019845,2]
[360205080,1746621041711,-1052.38142226,0.00019845,2]
[360205081,1746621041721,-500.0,0.00019846,2]
[360205082,1746621041731,-270.38704527,0.00019846,2]
[360205083,1746621041740,-450.0,0.00019846,2]
[360205084,1746621041750,-301.6,0.00019846,2]
[360205085,1746621041759,-672.66,0.00019846,2]
[360205086,1746621041770,-450.0,0.00019846,2]
[360205087,1746621041779,-450.0,0.00019846,2]
[360205088,1746621041789,-450.0,0.00019846,2]
[360205089,1746621041799,-450.0,0.00019846,2]
[360205090,1746621041809,-93258.70304585,0.00019847,2]
[360205091,1746621041818,-150.0,0.00019847,2]
[360205092,1746621041828,-150.0,0.00019847,2]
[360205093,1746621041837,-25875.107325,0.00019847,2]
[360205094,1746621041847,-150.0,0.0001985,2]
[360205095,1746621041857,-561.25502189,0.00019855,2]
[360205096,1746621041866,-150.0,0.00019857,2]
[360205097,1746621041875,-150.0,0.00019858,2]
[360205098,1746621041885,-150.0,0.0001986,2]
[360205099,1746621041895,-150.0,0.0001986,2]
[360205100,1746621041905,-150.0,0.00019868,2]
[360205101,1746621041915,-3037.61768306,0.0001987,2]
[360205102,1746621041925,-150.0,0.00019872,2]
[360205103,1746621041935,-500.0,0.00019873,2]
[360205104,1746621041945,-500.0,0.00019873,2]
[360205105,1746621041955,-503.82522634,0.00019873,2]
[360205106,1746621041965,-500.0,0.00019873,2]
[360205107,1746621041975,-500.0,0.00019873,2]
[360205108,1746621041986,-500.0,0.00019873,2]
[360205109,1746621041995,-500.0,0.00019873,2]
[360205110,1746621042005,-500.0,0.00019873,2]
[360205111,1746621042014,-500.0,0.00019873,2]
[360205112,1746621042025,-500.40684714,0.00019873,2]
[360205113,1746621042035,-500.0,0.00019873,2]
[360205114,1746621042044,-150.0,0.00019873,2]
[360205115,1746621042053,-150.0,0.00019875,2]
[360205116,1746621042063,-150.0,0.00019875,2]
[360205117,1746621042072,-150.0,0.00019876,2]
[360205118,1746621042082,-150.0,0.00019878,2]
[360205119,1746621042091,-150.0,0.00019878,2]
[360205120,1746621042101,-150.0,0.00019879,2]
[360205121,1746621042111,-246.80186765,0.0001988,2]
[360205122,1746621042121,-5465.30311021,0.0001988,2]
[360205123,1746621042131,-150.0,0.00019882,2]
[360205124,1746621042140,-164.86,0.00019883,2]
[360205125,1746621042150,-542.79265641,0.00019883,2]
[360205126,1746621042160,-450.0,0.00019883,2]
[360205127,1746621042169,-450.0,0.00019883,2]
[360205128,1746621042179,-450.0,0.00019883,2]
[360205129,1746621042190,-450.0,0.00019883,2]
[360205130,1746621042200,-450.0,0.00019883,2]
[360205131,1746621042210,-450.0,0.00019883,2]
[360205132,1746621042219,-450.0,0.00019883,2]
[360205133,1746621042229,-450.0,0.00019883,2]
[360205134,1746621042239,-301.98617385,0.00019883,2]
[360205135,1746621042249,-450.0,0.00019883,2]
[360205136,1746621042258,-150.0,0.00019883,2]
[360205137,1746621042267,-1063.82509654,0.00019886,2]
[360205138,1746621042276,-150.0,0.00019887,2]
[360205139,1746621042286,-25875.107325,0.00019888,2]
[360205140,1746621042295,-8877.19694691,0.00019889,2]
[360205141,1746621042304,-150.0,0.00019889,2]
[360205142,1746621042313,-150.0,0.0001989,2]
[360205143,1746621042323,-150.0,0.00019895,2]
[360205144,1746621042335,-503.9562759,0.00019899,2]
[360205145,1746621042345,-169.4841146,0.00019899,2]
[360205146,1746621042354,-166.55221696,0.00019899,2]
[360205147,1746621042363,-398.333666,0.000199,2]
[360205148,1746621042374,-150.0,0.000199,2]
[360205149,1746621042383,-4753.60179229,0.000199,3]
[360205150,1746621042392,-3583.07796518,0.000199,2]
[360205151,1746621042402,-194.77304098,0.000199,3]
[360205152,1746621042413,-2137.5388655,0.000199,2]
[360205153,1746621042424,-5692.41234718,0.000199,2]
[360205154,1746621042433,-150.0,0.00019901,2]
[360205155,1746621042442,-150.0,0.00019905,2]
[360205156,1746621042452,-150.0,0.00019905,2]
[360205157,1746621042462,-150.0,0.00019907,2]
[360205158,1746621042471,-150.0,0.0001991,2]
[360205159,1746621042482,-150.0,0.00019913,2]
[360205160,1746621042492,-150.0,0.00019914,2]
[360205161,1746621042502,-150.0,0.00019918,2]
[360205162,1746621042511,-2841.768,0.0001992,2]
[360205163,1746621042521,-151.0,0.00019922,2]
[360205164,1746621042530,-151.0,0.00019922,2]
[360205165,1746621042539,-151.0,0.00019922,2]
[360205166,1746621042548,-668.65185757,0.00019922,2]
[360205167,1746621042558,-161.408,0.00019929,2]
[360205168,1746621042568,-150.0,0.00019936,2]
[360205169,1746621042577,-150.0,0.0001994,2]
[360205170,1746621042586,-450.0,0.00019945,2]
[360205171,1746621042596,-450.0,0.00019945,2]
[360205172,1746621042606,-329.73995308,0.00019945,2]
[360205173,1746621042618,-450.0,0.00019945,2]
[360205174,1746621042628,-450.0,0.00019945,2]
[360205175,1746621042637,-450.0,0.00019945,2]
[360205176,1746621042647,-450.0,0.00019945,2]
[360205177,1746621042656,-450.0,0.00019945,2]
[360205178,1746621042665,-494.85,0.00019945,2]
[360205179,1746621042675,-450.0,0.00019945,2]
[360205180,1746621042684,-510.0,0.00019945,2]
[360205182,1746621042693,-450.0,0.00019945,2]
[360205184,1746621042702,-450.0,0.00019945,2]
[360205186,1746621042712,-450.0,0.00019945,2]
[360205187,1746621042721,-450.0,0.00019945,2]
[360205189,1746621042731,-450.0,0.00019945,2]
[360205191,1746621042740,-450.0,0.00019945,2]
[360205194,1746621042750,-450.0,0.00019945,2]
[360205196,1746621042759,-450.0,0.00019945,2]
[360205198,1746621042768,-450.0,0.00019945,2]
[360205200,1746621042778,-450.0,0.00019945,2]
[360205202,1746621042788,-569.09377469,0.00019945,2]
[360205204,1746621042797,-450.0,0.00019945,2]
[360205207,1746621042806,-450.0,0.00019945,2]
[360205210,1746621042815,-239.22,0.00019945,2]
[360205213,1746621042826,-450.0,0.00019945,2]
[360205215,1746621042836,-450.0,0.00019945,2]
[360205217,1746621042845,-450.0,0.00019945,2]
[360205219,1746621042854,-450.0,0.00019945,2]
[360205223,1746621042864,-450.0,0.00019945,2]
[360205226,1746621042874,-450.0,0.00019945,2]
[360205229,1746621042883,-450.0,0.00019945,2]
[360205230,1746621042892,-450.0,0.00019945,2]
[360205231,1746621042902,-450.0,0.00019945,2]
[360205232,1746621042911,-463.36,0.00019945,2]
[360205233,1746621042921,-450.0,0.00019945,2]
[360205234,1746621042930,-450.0,0.00019945,2]
[360205235,1746621042940,-450.0,0.00019945,2]
[360205236,1746621042949,-450.0,0.00019945,2]
[360205238,1746621042959,-450.0,0.00019945,2]
[360205240,1746621042969,-1201.18,0.00019945,2]
[360205242,1746621042979,-418.14,0.00019946,2]
[360205244,1746621042989,-450.0,0.00019946,2]
[360205245,1746621042998,-450.0,0.00019946,2]
[360205246,1746621043007,-450.0,0.00019946,2]
[360205247,1746621043016,-450.0,0.00019946,2]
[360205248,1746621043026,-450.0,0.00019946,2]
[360205249,1746621043035,-450.0,0.00019946,2]
[360205250,1746621043046,-150.0,0.00019951,2]
[360205251,1746621043055,-150.0,0.00019952,2]
[360205252,1746621043065,-150.0,0.00019957,2]
[360205253,1746621043075,-150.0,0.00019959,2]
[360205254,1746621043085,-150.0,0.00019959,2]
[360205256,1746621043094,-450.0,0.00019959,2]
[360205257,1746621043103,-672.66,0.00019959,2]
[360205258,1746621043112,-450.0,0.00019959,2]
[360205259,1746621043122,-490.0,0.00019959,2]
[360205260,1746621043132,-450.0,0.0001996,2]
[360205261,1746621043141,-31221.98,0.0001996,2]
[360205262,1746621043150,-315.0398716,0.0001996,2]
[360205263,1746621043160,-615.37,0.0001996,2]
[360205264,1746621043170,-450.0,0.0001996,2]
[360205265,1746621043179,-450.0,0.0001996,2]
[360205266,1746621043188,-450.0,0.0001996,2]
[360205267,1746621043197,-450.0,0.0001996,2]
[360205268,1746621043206,-390.66,0.0001996,2]
[360205269,1746621043216,-989.4,0.0001996,2]
[360205270,1746621043226,-1161.62,0.0001996,2]
[360205271,1746621043236,-9948.8,0.0001996,2]
[360205272,1746621043246,-450.0,0.0001996,2]
[360205273,1746621043255,-3491.28,0.0001996,2]
[360205274,1746621043264,-450.0,0.0001996,2]
[360205275,1746621043273,-4045.43,0.0001996,2]
[360205276,1746621043283,-2807.07,0.0001996,2]
[360205277,1746621043293,-150.0,0.00019963,2]
[360205278,1746621043303,-150.0,0.00019969,2]
[360205279,1746621043313,-150.0,0.00019971,2]
[360205280,1746621043323,-500.0,0.00019973,2]
[360205281,1746621043336,-500.0,0.00019973,2]
[360205282,1746621043346,-500.0,0.00019973,2]
[360205283,1746621043355,-500.0,0.00019973,2]
[360205284,1746621043364,-3883.0,0.00019973,2]
[360205285,1746621043375,-500.0,0.00019973,2]
[360205286,1746621043384,-500.0,0.00019973,2]
[360205287,1746621043394,-500.0,0.00019973,2]
[360205288,1746621043404,-183.71661702,0.00019973,2]
[360205289,1746621043415,-500.0,0.00019973,2]
[360205290,1746621043425,-500.0,0.00019973,2]
[360205291,1746621043435,-211.18250153,0.00019973,2]
[360205292,1746621043444,-500.0,0.00019973,2]
[360205293,1746621043454,-500.0,0.00019973,2]
[360205294,1746621043463,-500.0,0.00019973,2]
[360205295,1746621043473,-150.0,0.00019977,2]
[360205296,1746621043484,-150.0,0.00019978,2]
[360205297,1746621043494,-150.0,0.00019981,2]
[360205298,1746621043504,-150.0,0.00019983,2]
[360205299,1746621043514,-450.0,0.00019985,2]
[360205300,1746621043523,-450.0,0.00019985,2]
[360205301,1746621043533,-450.0,0.00019985,2]
[360205302,1746621043542,-252.23894133,0.00019985,2]
[360205303,1746621043552,-450.0,0.00019985,2]
[360205304,1746621043561,-500.0,0.00019985,2]
[360205305,1746621043570,-450.0,0.00019985,2]
[360205306,1746621043580,-450.0,0.00019985,2]
[360205307,1746621043589,-450.0,0.00019985,2]
[360205308,1746621043598,-450.0,0.00019985,2]
[360205309,1746621043607,-450.0,0.00019985,2]
[360205310,1746621043616,-450.0,0.00019985,2]
[360205311,1746621043625,-453.13,0.00019985,2]
[360205312,1746621043635,-158.3552366,0.00019985,2]
[360205313,1746621043644,-450.0,0.00019985,2]
[360205314,1746621043653,-450.0,0.00019985,2]
[360205315,1746621043663,-450.0,0.00019985,2]
[360205316,1746621043672,-450.0,0.00019985,2]
[360205317,1746621043682,-450.0,0.00019985,2]
[360205318,1746621043691,-450.0,0.00019985,2]
[360205319,1746621043700,-450.0,0.00019985,2]
[360205320,1746621043710,-265.439215,0.00019985,2]
[360205321,1746621043719,-843.49,0.00019985,2]
[360205322,1746621043729,-333.13466616,0.00019985,2]
[360205323,1746621043739,-3380.7940004,0.00019986,2]
[360205324,1746621043748,-778.8832932,0.00019986,2]
[360205325,1746621043757,-1522.30337,0.00019986,2]
[360205326,1746621043766,-39097.7138789,0.00019986,2]
[360205327,1746621043776,-176.33862059,0.00019989,2]
[360205328,1746621043785,-30242.33795649,0.0001999,2]
[360205329,1746621043794,-176.33862059,0.0001999,2]
[360205330,1746621043804,-150.0,0.00019991,2]
[360205331,1746621043813,-150.0,0.00019992,2]
[360205332,1746621043822,-450.0,0.00019996,2]
[360205333,1746621043831,-450.0,0.00019996,2]
[360205334,1746621043840,-450.0,0.00019996,2]
[360205335,1746621043849,-450.0,0.00019996,2]
[360205336,1746621043858,-250.0,0.00019996,2]
[360205337,1746621043867,-450.0,0.00019996,2]
[360205338,1746621043876,-450.0,0.00019996,2]
[360205339,1746621043885,-450.0,0.00019996,2]
[360205340,1746621043895,-284.71620812,0.00019996,2]
[360205341,1746621043905,-450.0,0.00019996,2]
[360205342,1746621043915,-302.33454436,0.00019996,2]
[360205343,1746621043924,-450.0,0.00019996,2]
[360205344,1746621043933,-450.0,0.00019996,2]
[360205345,1746621043942,-567.84884716,0.00019996,2]
[360205346,1746621043951,-450.0,0.00019996,2]
[360205347,1746621043961,-450.0,0.00019996,2]
[360205348,1746621043970,-450.0,0.00019996,2]
[360205349,1746621043979,-450.0,0.00019996,2]
[360205350,1746621043988,-450.0,0.00019996,2]
[360205351,1746621043998,-450.0,0.00019996,2]
[360205352,1746621044007,-450.0,0.00019996,2]
[360205353,1746621044017,-450.0,0.00019996,2]
[360205354,1746621044026,-450.0,0.00019996,2]
[360205355,1746621044035,-450.0,0.00019996,2]
[360205356,1746621044045,-450.0,0.00019996,2]
[360205357,1746621044054,-297.06007208,0.00019996,2]
[360205358,1746621044063,-450.0,0.00019996,2]
[360205359,1746621044073,-450.0,0.00019996,2]
[360205360,1746621044082,-450.0,0.00019996,2]
[360205361,1746621044092,-500.0,0.00019996,2]
[360205362,1746621044101,-462.71003803,0.00019996,2]
[360205363,1746621044110,-450.0,0.00019996,2]
[360205364,1746621044119,-450.0,0.00019996,2]
[360205365,1746621044128,-450.0,0.00019996,2]
[360205366,1746621044138,-450.0,0.00019996,2]
[360205367,1746621044148,-450.0,0.00019996,2]
[360205368,1746621044157,-450.0,0.00019996,2]
[360205369,1746621044166,-447.69776053,0.00019996,2]
[360205370,1746621044175,-450.0,0.00019996,2]
[360205371,1746621044185,-560.55,0.00019996,2]
[360205372,1746621044194,-181.02728098,0.00019996,2]
[360205373,1746621044204,-450.0,0.00019996,2]
[360205374,1746621044214,-450.0,0.00019996,2]
[360205375,1746621044223,-450.0,0.00019996,2]
[360205376,1746621044233,-150.0,0.00019996,2]
[360205377,1746621044243,-450.0,0.00019996,2]
[360205378,1746621044254,-150.0,0.00019996,2]
[360205379,1746621044263,-450.0,0.00019996,2]
[360205380,1746621044273,-512.25529573,0.00019996,2]
[360205381,1746621044282,-494.41,0.00019996,2]
[360205382,1746621044291,-450.0,0.00019996,2]
[360205383,1746621044300,-450.0,0.00019996,2]
[360205384,1746621044310,-450.0,0.00019996,2]
[360205385,1746621044319,-450.0,0.00019996,2]
[360205386,1746621044331,-450.0,0.00019996,2]
[360205387,1746621044340,-450.0,0.00019996,2]
[360205388,1746621044350,-450.0,0.00019997,2]
[360205389,1746621044360,-450.0,0.00019997,2]
[360205390,1746621044370,-500.0,0.00019997,2]
[360205391,1746621044380,-450.0,0.00019997,2]
[360205392,1746621044389,-450.0,0.00019997,2]
[360205393,1746621044399,-450.0,0.00019997,2]
[360205394,1746621044410,-450.0,0.00019997,2]
[360205395,1746621044419,-450.0,0.00019997,2]
[360205396,1746621044428,-403.52019394,0.00019997,2]
[360205397,1746621044437,-450.0,0.00019997,2]
[360205398,1746621044447,-450.0,0.00019997,2]
[360205399,1746621044456,-387.68864713,0.00019997,2]
[360205400,1746621044465,-450.0,0.00019997,2]
[360205401,1746621044475,-31221.98,0.00019997,2]
[360205402,1746621044484,-450.0,0.00019997,2]
[360205403,1746621044493,-450.0,0.00019997,2]
[360205404,1746621044502,-450.0,0.00019997,2]
[360205405,1746621044512,-450.0,0.00019997,2]
[360205406,1746621044521,-615.37,0.00019997,2]
[360205407,1746621044531,-236.05190132,0.00019997,2]
[360205408,1746621044540,-463.36,0.00019997,2]
[360205409,1746621044549,-500.0,0.00019997,2]
[360205410,1746621044559,-450.0,0.00019997,2]
[360205411,1746621044568,-284.73,0.00019997,2]
[360205412,1746621044577,-450.0,0.00019997,2]
[360205413,1746621044586,-450.0,0.00019997,2]
[360205414,1746621044595,-450.0,0.00019997,2]
[360205415,1746621044604,-450.0,0.00019997,2]
[360205416,1746621044614,-450.0,0.00019997,2]
[360205417,1746621044623,-450.0,0.00019997,2]
[360205418,1746621044633,-450.0,0.00019997,2]
[360205419,1746621044642,-453.13,0.00019997,2]
[360205420,1746621044651,-989.4,0.00019997,2]
[360205421,1746621044660,-672.66,0.00019997,2]
[360205422,1746621044670,-450.0,0.00019997,2]
[360205423,1746621044680,-450.0,0.00019997,2]
[360205424,1746621044689,-450.0,0.00019997,2]
[360205425,1746621044698,-450.0,0.00019997,2]
[360205426,1746621044707,-450.0,0.00019997,2]
[360205427,1746621044717,-1161.62,0.00019997,2]
[360205428,1746621044726,-450.0,0.00019997,2]
[360205429,1746621044736,-9948.8,0.00019997,2]
[360205430,1746621044746,-450.0,0.00019997,2]
[360205431,1746621044755,-450.0,0.00019997,2]
[360205432,1746621044764,-450.0,0.00019997,2]
[360205433,1746621044910,-450.0,0.00019997,2]
[360205434,1746621044941,-1201.18,0.00019997,2]
[360205435,1746621044951,-1465.7948786,0.00019997,2]
[360205436,1746621044967,-1049.426935,0.00019997,2]
[360205437,1746621044979,-389.67347136,0.00019997,2]
[360205438,1746621044990,-586.38471504,0.00019997,2]
[360205439,1746621045000,-450.0,0.00019997,2]
[360205440,1746621045009,-3141.27885637,0.00019997,2]
[360205441,1746621045021,-904.15114363,0.00019997,2]
[360205442,1746621045031,-843.49,0.00019997,2]
[360205443,1746621045041,-1561.51794827,0.00019997,2]
[360205444,1746621045053,-346.28832313,0.00019997,2]
[360205445,1746621045069,-150.0,0.00019831,2]
[360205446,1746621045079,-633.68195796,0.00019997,2]
[360205447,1746621045460,-150.0,0.00019726,2]
[360205448,1746621045469,-150.0,0.00019728,2]
[360205449,1746621045479,-150.0,0.00019734,2]
[360205450,1746621045489,-150.0,0.00019739,2]
[360205451,1746621045499,-150.0,0.0001974,2]
[360205452,1746621045509,-150.0,0.00019742,2]
[360205453,1746621045518,-150.0,0.00019754,2]
[360205454,1746621045527,-150.0,0.00019759,2]
[360205455,1746621045536,-150.0,0.00019764,2]
[360205456,1746621045546,-150.0,0.00019767,2]
[360205457,1746621045555,-78.89658641,0.00019773,2]
[360205460,1746621045863,-150.0,0.00019725,2]
[360205461,1746621045873,-150.0,0.00019732,2]
[360205462,1746621045883,-150.0,0.00019734,2]
[360205463,1746621045892,-150.0,0.00019734,2]
[360205465,1746621045902,-150.0,0.00019734,2]
[360205466,1746621045912,-150.0,0.00019736,2]
[360205467,1746621045921,-880.0,0.00019758,2]
[360205468,1746621045931,-150.0,0.00019772,2]
[360205469,1746621045940,-71.10341359,0.00019773,2]
[360205470,1746621045950,-150.0,0.00019774,2]
[360205471,1746621045959,-94.19026702,0.00019777,2]
[360205472,1746621046132,-55.80973298,0.00019777,2]
[360205473,1746621046142,-150.0,0.00019779,2]
[360205474,1746621046152,-150.0,0.00019779,2]
[360205475,1746621046166,-101.5246214,0.00019782,2]
[360205476,1746621046177,-48.4753786,0.00019782,2]
[360205477,1746621046186,-150.0,0.00019782,2]
[360205478,1746621046196,-150.0,0.00019783,2]
[360205479,1746621046206,-58.1805393,0.00019786,2]
[360205480,1746621046218,-91.8194607,0.00019786,2]
[360205481,1746621046227,-150.0,0.00019788,2]
[360205482,1746621046237,-176.67886212,0.00019789,2]
[360205483,1746621046247,-150.0,0.00019797,2]
[360205484,1746621046256,-150.0,0.000198,2]
[360205485,1746621046266,-150.0,0.00019803,2]
[360205486,1746621046275,-150.0,0.00019804,2]
[360205487,1746621046284,-16.7694156,0.00019806,2]
[360205488,1746621046296,-133.2305844,0.00019806,2]
[360205489,1746621046305,-150.0,0.00019808,2]
[360205490,1746621046315,-150.0,0.00019808,2]
[360205491,1746621046325,-150.0,0.00019811,2]
[360205492,1746621046339,-150.0,0.00019813,2]
[360205493,1746621046349,-150.0,0.00019815,2]
[360205494,1746621046358,-150.0,0.00019819,2]
[360205495,1746621046367,-150.0,0.0001982,2]
[360205496,1746621046379,-150.0,0.0001983,2]
[360205497,1746621046389,-150.0,0.00019834,2]
[360205498,1746621046398,-150.0,0.00019836,2]
[360205499,1746621046408,-150.0,0.00019839,2]
[360205500,1746621046417,-136.6694156,0.00019843,2]
[360205501,1746621056771,1232.0,0.000194,2]
[360205502,1746621130076,455.79417451,0.0003,30]
[360205503,1746621203686,250.0,0.00017,2]
[360205504,1746621204655,300.0,0.00019,2]
[360205506,1746621253067,1333.0,0.00029041,120]
[360205515,1746621357568,152.00000001,0.0003,30]
[360205516,1746621404889,208.07483032,0.0003,30]
[360205517,1746621431932,150.0,0.000195,4]
[360205518,1746621468055,-289.57623329,0.00019501,2]
[360205519,1746621483255,-227.31671143,0.00019501,2]
[360205520,1746621484950,-227.31671143,0.00019501,2]
[360205521,1746621499405,-573.5677,0.00019501,2]
[360205522,1746621505493,500.0,0.0003,30]
[360205523,1746621514476,-295.72,0.00019501,2]
[360205524,1746621521305,2352.389145,0.00019403,2]
[360205525,1746621528336,-283.38891236,0.00019501,2]
[360205526,1746621543267,-247.32338764,0.00019501,2]
[360205527,1746621558298,-200.0,0.00019501,2]
[360205528,1746621574452,-213.99768461,0.00019501,2]
[360205529,1746621586986,-166.69,0.00019501,2]
[360205530,1746621591893,-166.66,0.00019501,2]
[360205531,1746621595947,1111.399985,0.00019403,2]
[360205532,1746621603258,-327.2332436,0.00019501,2]
[360205533,1746621604486,-175.2332436,0.00019501,2]
[360205534,1746621608534,493.893244,0.00019403,2]
[360205535,1746621618335,-719.79201788,0.00019501,2]
[360205536,1746621633309,-370.00715091,0.00019501,2]
[360205537,1746621649399,-353.78326996,0.00019501,2]
[360205538,1746621664365,-607.6079,0.00019501,2]
[360205539,1746621678343,-208.88367675,0.00019501,2]
[360205540,1746621682982,2051.190338,0.00019403,2]
[360205541,1746621693857,-160.20661553,0.00019501,2]
[360205542,1746621697211,208.883677,0.00019403,2]
[360205543,1746621697762,150.0,0.00018986,7]
[360205544,1746621709527,-198.75699536,0.00019501,2]
[360205545,1746621711431,160.206616,0.00019403,2]
[360205546,1746621723278,-178.72,0.00019501,2]
[360205547,1746621724410,198.756995,0.00019403,2]
[360205548,1746621729643,157.46,0.00016916,2]